Cogmind - Beta 16 @@@ ROGUE MODE // 2025.12.19 @ 23:23:55 Player: TheGamingJasper Result: Destroyed by S-43 Plague with Heavy Machine Gun Performance ------------- Evolutions (7) 3500 Regions Visited (17) 3400 Robots Destroyed (42) 210 Value Destroyed (908) 908 Prototype IDs (3) 60 Alien Tech Used (0) 0 Bonus (701) 701 TOTAL SCORE: 8779 Bonus ------- Follower Combat Kills 401 Aligned with FarCom 300 Cogmind --------- Core Integrity 0/1300 Matter 154/300 Energy 100/100 System Corruption 1% Temperature Cool (0) Movement Core (50) Location -3/Research Parts ------- > --- POWER (2) -------- (None) > --- PROPULSION (6) --- (None) > --- UTILITY (11) ----- Improved Signal Interpreter Advanced Signal Interpreter > --- WEAPON (2) ------- (None) > --- INVENTORY (5) ---- Improved Deuterium Engine Matter Filter Drone Bay (2/2) Minigun Advanced Datajack Peak State ------------ > --- POWER ------------ Improved Deuterium Engine > --- PROPULSION ------- Nuclear Pulse Array Nuclear Pulse Array > --- UTILITY ---------- Visual Processing Unit Improved Sensor Array Improved Signal Interpreter Advanced Signal Interpreter Advanced ECM Suite Shock Absorption System Improved Hacking Suite Improved System Shield > --- WEAPON ----------- Minigun Flak Gun > --- INVENTORY -------- Light Angular Momentum Engine Matter Filter Drone Bay Advanced Datajack [Rating: 68] Favorites ----------- Power Light Nuclear Core Engine Improved Deuterium Engine Power Core Light Nuclear Core Propulsion VTOL Module Leg Aluminum Leg Flight Unit VTOL Module Utility Sensor Array Device Sensor Array Storage Small Storage Unit Processor Improved Signal Interpreter Hackware Improved System Shield Protection Core Shielding Weapon Light Assault Rifle Ballistic Gun Light Assault Rifle Ballistic Cannon Gauss Cannon Launcher Improved Grenade Launcher Special Weapon Field Lobotomy Kit Special Melee Weapon Improved Datajack Build | -11 -10 -10 -9 -9 -9 -8 -8 -8 -7 -7 -7 -6 -5 -5 -5 -4 -3 ------- Run | Yrd Mat Min Mat Min Exi Min Mat Sto Fac Low Low Fac Fac Upp Upp Fac Res Slots Evolved 14 | . . . 2 . . . 2 . 2 . . 2 2 . . 2 2 Power 1 | . . . . . . . . . 1 . . . . . . . . Propulsion 4 | . . . 2 . . . . . . . . . 1 . . . 1 Utility 9 | . . . . . . . 2 . 1 . . 2 1 . . 2 1 Weapon . | . . . . . . . . . . . . . . . . . . Parts Attached 72 | 4 3 4 11 3 1 . 2 14 12 . . 8 4 2 3 . 1 Power 12 | 1 . 1 3 . . . . 3 1 . . 1 1 . . . 1 Engine 9 | 1 . 1 2 . . . . 1 1 . . 1 1 . . . 1 Core 3 | . . . 1 . . . . 2 . . . . . . . . . Reactor . | . . . . . . . . . . . . . . . . . . Propulsion 27 | 2 . 2 5 1 . . . 6 5 . . 4 1 1 . . . Treads . | . . . . . . . . . . . . . . . . . . Leg 8 | 2 . . . . . . . 5 1 . . . . . . . . Wheel . | . . . . . . . . . . . . . . . . . . Hover . | . . . . . . . . . . . . . . . . . . Flight 19 | . . 2 5 1 . . . 1 4 . . 4 1 1 . . . Utility 19 | 1 1 1 2 . . . 2 2 4 . . 1 2 1 2 . . Device 11 | . 1 . 1 . . . 1 2 3 . . . 1 1 1 . . Storage 1 | 1 . . . . . . . . . . . . . . . . . Processor 4 | . . . 1 . . . 1 . 1 . . 1 . . . . . Hackware 2 | . . . . . . . . . . . . . 1 . 1 . . Protection 1 | . . 1 . . . . . . . . . . . . . . . Artifact . | . . . . . . . . . . . . . . . . . . Weapon 14 | . 2 . 1 2 1 . . 3 2 . . 2 . . 1 . . Energy Gun . | . . . . . . . . . . . . . . . . . . Energy Cannon . | . . . . . . . . . . . . . . . . . . Ballistic Gun 8 | . 2 . . 1 . . . 3 . . . 1 . . 1 . . Ballistic Cannon 1 | . . . . . . . . . . . . 1 . . . . . Launcher 3 | . . . 1 1 . . . . 1 . . . . . . . . Special Weapon 1 | . . . . . 1 . . . . . . . . . . . . Impact Weapon . | . . . . . . . . . . . . . . . . . . Slashing Weapon . | . . . . . . . . . . . . . . . . . . Piercing Weapon . | . . . . . . . . . . . . . . . . . . Special Melee Weapon 1 | . . . . . . . . . 1 . . . . . . . . Unidentified Prototypes 3 | . . . . . 1 . . 2 . . . . . . . . . Parts Lost 36 | . . . . 1 . . 1 14 3 . . 1 1 7 . . 8 Power 5 | . . . . . . . . 2 . . . . . 2 . . 1 Propulsion 13 | . . . . . . . 1 6 1 . . . . 3 . . 2 Utility 12 | . . . . . . . . 4 1 . . 1 . 1 . . 5 Weapon 6 | . . . . 1 . . . 2 1 . . . 1 1 . . . Highest Loss Streak 8 | . . . . 1 . . 1 6 2 . . 1 1 5 . . 8 To Critical Strikes . | . . . . . . . . . . . . . . . . . . Average Backups 4 | 1 4 5 4 4 4 5 4 4 4 5 5 4 3 3 . 1 3 Power . | . 1 1 1 1 1 1 1 1 . 1 1 1 . . . 1 1 Propulsion . | . . 1 . 1 1 1 . . 1 1 1 1 1 . . . . Utility 1 | . . 1 2 2 2 1 1 . . 1 1 1 . 1 . . 1 Weapon . | 1 2 1 1 . . 1 1 . . 2 2 1 1 . . . . Tool/Special . | . . . . . . . . . . . . . . . . . . Unused Backups 5 | . . . 1 . . . . . . . . 1 . . . . 3 Power . | . . . . . . . . . . . . . . . . . . Propulsion . | . . . . . . . . . . . . . . . . . . Utility 4 | . . . 1 . . . . . . . . 1 . . . . 2 Weapon . | . . . . . . . . . . . . . . . . . . Tool/Special 1 | . . . . . . . . . . . . . . . . . 1 Average Slot Usage (%) 81 | . 80 100 99 99 100 100 91 70 90 84 84 85 82 65 70 68 56 Engine 5 | . 14 14 6 . . . . . 5 7 7 6 10 6 5 5 3 Core 3 | . . . 4 11 11 11 9 5 5 . . . . . . . . Leg 6 | . 28 2 . . . . . 5 18 . . . . . . . . Flight 20 | . . 25 43 44 44 44 36 18 11 30 30 26 25 15 11 10 7 Device 14 | . 12 14 14 11 11 11 12 12 18 23 23 19 12 11 15 15 12 Processor 12 | . . . 7 11 11 11 16 12 14 15 15 19 17 17 17 15 14 Hackware 1 | . . . . . . . . . . . . . 3 5 11 10 8 Ballistic Gun 10 | . 10 28 21 10 11 9 9 9 11 . . 5 5 5 6 10 7 Launcher 2 | . . . . 11 7 1 . 4 1 7 7 6 4 . . . . Peak Build Rating 68 | 4 7 7 15 16 24 25 30 32 34 27 27 47 62 63 66 67 68 Average Rating 30 | 2 5 6 12 15 19 24 27 18 28 27 27 46 57 53 63 66 61 On Entrance 28 | . 4 7 7 15 16 24 24 30 20 27 27 27 44 59 53 66 67 Avg Prop Armor Cover (%) . | . . . . . . . . . . . . . . . . . . Naked Turns . | . . . . . . . . . . . . . . . . . . Heaviest Build 28 | 10 14 14 11 11 15 15 16 16 25 14 14 22 28 26 24 24 24 Greatest Support 45 | 20 20 20 16 16 16 16 16 45 45 16 16 24 31 32 26 26 26 Greatest Overweight (x) 7 | . . . . . . . . 2 7 . . . . . . . 1 Average Overweight (x) . | . . . . . . . . . . . . . . . . . . Largest Inventory Capacity 8 | 8 8 8 5 5 5 5 5 5 5 5 5 5 5 5 5 5 5 Average Capacity 5 | 6 8 5 5 5 5 5 5 5 5 5 5 5 5 5 5 5 5 Most Carried 6 | 4 5 6 5 5 5 5 5 5 5 5 5 5 5 5 2 2 5 Average Carried 4 | 2 4 4 4 4 4 5 4 4 4 5 5 4 4 3 . 1 3 Final Capacity 8 | 8 8 5 5 5 5 5 5 5 5 5 5 5 5 5 5 5 5 Final Carried 5 | 3 5 5 5 4 5 5 4 4 5 5 5 5 5 2 1 2 5 Class Distribution -------------------- 27% | Scout 18% | Scavenger-Scout 15% | Mutant 10% | Hacker-Scout 9% | Scavenger-Sprinter 7% | Scavenger-Skirmisher 4% | Scavenger-Assassin 3% | Commander-Skirmisher Dominant Class ---------------- Mutant | -10/Materials Mutant | -10/Mines Scavenger-Sprinter | -9/Materials Scavenger-Sprinter | -9/Mines Scavenger-Sprinter | -9/Exiles Scavenger-Scout | -8/Mines Scavenger-Scout | -8/Materials Scavenger-Scout | -8/Storage Scavenger-Scout | -7/Factory Scavenger-Scout | -7/Lower Caves Scavenger-Scout | -7/Lower Caves Scout | -6/Factory Scout | -5/Factory Scout | -5/Upper Caves Hacker-Scout | -5/Upper Caves Hacker-Scout | -4/Factory Hacker-Scout | -3/Research Resources | -11 -10 -10 -9 -9 -9 -8 -8 -8 -7 -7 -7 -6 -5 -5 -5 -4 -3 ----------- Run | Yrd Mat Min Mat Min Exi Min Mat Sto Fac Low Low Fac Fac Upp Upp Fac Res Matter Collected 1679 | 240 42 92 186 77 . 30 . 421 268 53 . . 188 82 . . . Remotely . | . . . . . . . . . . . . . . . . . . Salvage Created 1052 | . 42 152 280 25 . . . 170 323 . . . . 60 . . . Parts 78 | . 6 12 23 7 . . . 9 19 . . . . 2 . . . Haulers Intercepted 3 | . . . . . . . . 2 1 . . . . . . . . Recyclers Shooed 1 | . . . . . . . . 1 . . . . . . . . . Parts Field Recycled . | . . . . . . . . . . . . . . . . . . Retrieved Matter . | . . . . . . . . . . . . . . . . . . Parts Self-Destructed 2 | . . . . . . . . . . . . . . 2 . . . Prevented . | . . . . . . . . . . . . . . . . . . Parts Restored . | . . . . . . . . . . . . . . . . . . Kills | -11 -10 -10 -9 -9 -9 -8 -8 -8 -7 -7 -7 -6 -5 -5 -5 -4 -3 ------- Run | Yrd Mat Min Mat Min Exi Min Mat Sto Fac Low Low Fac Fac Upp Upp Fac Res Combat Hostiles Destroyed 34 | . 3 4 9 4 . . . 2 9 . . . . 3 . . . Guns 17 | . 3 4 5 . . . . 1 1 . . . . 3 . . . AOE 17 | . . . 4 4 . . . 1 8 . . . . . . . . Classes Destroyed 8 | . 1 1 3 . . . . 2 1 . . . . . . . . Worker 1 | . . . . . . . . . 1 . . . . . . . . Builder 1 | . . . . . . . . 1 . . . . . . . . . Hauler 3 | . . . . . . . . 2 1 . . . . . . . . Recycler 2 | . . 1 . . . . . . 1 . . . . . . . . Watcher 1 | . . . 1 . . . . . . . . . . . . . . Swarmer 24 | . 3 4 4 4 . . . . 6 . . . . 3 . . . Grunt 6 | . . . 3 . . . . 1 2 . . . . . . . . Sentry 4 | . . . 2 . . . . 1 1 . . . . . . . . Best Kill Streak 8 | . 3 3 4 8 . . . 3 5 . . . . 2 . . . Combat Bots Only 8 | . 3 3 4 8 . . . 1 3 . . . . 2 . . . Max Kills in Single Turn 4 | . 1 1 4 3 . . . 1 3 . . . . 1 . . . Gunslinging . | . . . . . . . . . . . . . . . . . . Exploded 4 | . . . 4 3 . . . 1 3 . . . . . . . . Melee . | . . . . . . . . . . . . . . . . . . Uniques/NPCs Destroyed . | . . . . . . . . . . . . . . . . . . Combat | -11 -10 -10 -9 -9 -9 -8 -8 -8 -7 -7 -7 -6 -5 -5 -5 -4 -3 -------- Run | Yrd Mat Min Mat Min Exi Min Mat Sto Fac Low Low Fac Fac Upp Upp Fac Res Hostile Shots Fired 456 | . 18 9 38 6 . . . 50 60 . . 36 5 96 . . 138 Missed 204 | . 6 2 18 . . . . 16 34 . . 19 2 42 . . 65 Hits 252 | . 12 7 20 6 . . . 34 26 . . 17 3 54 . . 73 Projectile 252 | . 12 7 20 6 . . . 34 26 . . 17 3 54 . . 73 Critical Strikes 3 | . . . . . . . . . . . . . . 1 . . 2 Damage Taken 4703 | . 107 53 266 67 . . 41 1107 486 . . 122 57 755 . . 1642 Core 1996 | . 25 8 74 22 . . . 366 56 . . 16 . 111 . . 1318 Absorbed by Shields . | . . . . . . . . . . . . . . . . . . Core Remaining (%) 84 | 100 . 86 . . . 76 . 33 . . 92 98 . . 88 100 . Volleys Fired 129 | . 10 6 16 2 . . . 48 34 . . . . 13 . . . Largest 2 | . 2 2 2 2 . . . 2 2 . . . . 2 . . . Hottest 65 | . 40 40 50 50 . . . 56 64 . . . . 65 . . . Shots Fired 198 | . 20 12 31 4 . . . 53 52 . . . . 26 . . . Gun 155 | . 20 12 30 2 . . . 34 44 . . . . 13 . . . Cannon 13 | . . . . . . . . . . . . . . 13 . . . Launcher 25 | . . . 1 2 . . . 14 8 . . . . . . . . Special 5 | . . . . . . . . 5 . . . . . . . . . Kinetic 168 | . 20 12 30 2 . . . 34 44 . . . . 26 . . . Thermal . | . . . . . . . . . . . . . . . . . . Explosive 25 | . . . 1 2 . . . 14 8 . . . . . . . . Electromagnetic . | . . . . . . . . . . . . . . . . . . Robot Hit Streak 9 | . 2 4 7 . . . . 9 7 . . . . 2 . . . Robot Miss Streak 4 | . 4 1 2 . . . . 2 3 . . . . 4 . . . Penetration Max . | . . . . . . . . . . . . . . . . . . Secondary Targets . | . . . . . . . . . . . . . . . . . . Shots Hit Robots 112 | . 9 7 20 . . . . 36 32 . . . . 8 . . . Core Hits 62 | . 3 5 17 4 . . . 11 18 . . . . 4 . . . Critical Kills . | . . . . . . . . . . . . . . . . . . Critical Parts Destroyed . | . . . . . . . . . . . . . . . . . . Critical Strikes . | . . . . . . . . . . . . . . . . . . Melee Attacks 5 | . . . . . . . . . 5 . . . . . . . . Impact . | . . . . . . . . . . . . . . . . . . Slashing . | . . . . . . . . . . . . . . . . . . Piercing . | . . . . . . . . . . . . . . . . . . Sneak Attacks 4 | . . . . . . . . . 4 . . . . . . . . Combat Hostiles . | . . . . . . . . . . . . . . . . . . Follow-up Attacks . | . . . . . . . . . . . . . . . . . . Damage Inflicted 2537 | . 98 92 365 137 . . . 559 1135 . . . . 151 . . . Guns 1166 | . 98 92 206 . . . . 357 343 . . . . 70 . . . Cannons 81 | . . . . . . . . . . . . . . 81 . . . Explosions 1290 | . . . 159 137 . . . 202 792 . . . . . . . . Melee . | . . . . . . . . . . . . . . . . . . Ramming . | . . . . . . . . . . . . . . . . . . Kinetic 1247 | . 98 92 206 . . . . 357 343 . . . . 151 . . . Thermal . | . . . . . . . . . . . . . . . . . . Explosive 1290 | . . . 159 137 . . . 202 792 . . . . . . . . Electromagnetic . | . . . . . . . . . . . . . . . . . . Impact . | . . . . . . . . . . . . . . . . . . Slashing . | . . . . . . . . . . . . . . . . . . Piercing . | . . . . . . . . . . . . . . . . . . Highest Corruption 20 | . . . . . . . . 20 . . . . . . . . 1 Average Corruption 16 | . . . . . . . . 17 . . . . . . . . 1 Corruption Purged . | . . . . . . . . . . . . . . . . . . Corruption Blocked . | . . . . . . . . . . . . . . . . . . Effects 33 | . . . . . . . . 33 . . . . . . . . . Message Errors 5 | . . . . . . . . 5 . . . . . . . . . Matter Fused 7 | . . . . . . . . 7 . . . . . . . . . Heat Flow Errors 1 | . . . . . . . . 1 . . . . . . . . . Energy Discharges 5 | . . . . . . . . 5 . . . . . . . . . Parts Rejected 1 | . . . . . . . . 1 . . . . . . . . . Parts Fused 1 | . . . . . . . . 1 . . . . . . . . . Data Loss (minor) 7 | . . . . . . . . 7 . . . . . . . . . Data Loss (major) 2 | . . . . . . . . 2 . . . . . . . . . Misfires 1 | . . . . . . . . 1 . . . . . . . . . Alerts 1 | . . . . . . . . 1 . . . . . . . . . Misdirections 1 | . . . . . . . . 1 . . . . . . . . . Weapon Failures 1 | . . . . . . . . 1 . . . . . . . . . Overload Shots . | . . . . . . . . . . . . . . . . . . Overflow Damage 54 | . . . . 3 . . . 24 22 . . . . 5 . . . Projectiles 5 | . . . . . . . . . . . . . . 5 . . . Explosions 49 | . . . . 3 . . . 24 22 . . . . . . . . Melee . | . . . . . . . . . . . . . . . . . . Knockbacks 2 | . . . . . . . . . . . . . . 2 . . . Impact . | . . . . . . . . . . . . . . . . . . Kinetic 2 | . . . . . . . . . . . . . . 2 . . . Secondary . | . . . . . . . . . . . . . . . . . . Self-Inflicted Damage 160 | . . . . 26 . . . 134 . . . . . . . . . Shots 7 | . . . . 2 . . . 5 . . . . . . . . . Rammed . | . . . . . . . . . . . . . . . . . . Targets Rammed . | . . . . . . . . . . . . . . . . . . Kicked . | . . . . . . . . . . . . . . . . . . Crushed . | . . . . . . . . . . . . . . . . . . Highest Temperature 160 | . . 4 13 . . . . 160 32 . . 4 10 18 . . . Average Temperature 11 | . . 3 5 . . . . 57 13 . . 2 4 8 . . . Received Heat Transfer 354 | . . . 93 . . . . 90 72 . . 30 30 18 . . 21 Siege Activations . | . . . . . . . . . . . . . . . . . . Martial Activations . | . . . . . . . . . . . . . . . . . . Shielding Activations . | . . . . . . . . . . . . . . . . . . Robots Disrupted . | . . . . . . . . . . . . . . . . . . Combat Hostiles . | . . . . . . . . . . . . . . . . . . Robots Corrupted . | . . . . . . . . . . . . . . . . . . Combat Hostiles . | . . . . . . . . . . . . . . . . . . Parts Fried . | . . . . . . . . . . . . . . . . . . Impact Corruptions . | . . . . . . . . . . . . . . . . . . Robots Melted . | . . . . . . . . . . . . . . . . . . Combat Hostiles . | . . . . . . . . . . . . . . . . . . Parts Melted . | . . . . . . . . . . . . . . . . . . Heat Transferred . | . . . . . . . . . . . . . . . . . . Parts Sabotaged . | . . . . . . . . . . . . . . . . . . Parts Stolen . | . . . . . . . . . . . . . . . . . . Parts Stripped . | . . . . . . . . . . . . . . . . . . Power Chain Reactions . | . . . . . . . . . . . . . . . . . . Alert | -11 -10 -10 -9 -9 -9 -8 -8 -8 -7 -7 -7 -6 -5 -5 -5 -4 -3 ------- Run | Yrd Mat Min Mat Min Exi Min Mat Sto Fac Low Low Fac Fac Upp Upp Fac Res Maximum Alert Level 1 | . . . . . . . . 1 . . . . . . . . . Low Security (%) 99 | 100 100 100 100 100 . 100 100 97 100 . . 100 100 . . 100 100 Level 1 . | . . . . . . . . 2 . . . . . . . . . Level 2 . | . . . . . . . . . . . . . . . . . . Level 3 . | . . . . . . . . . . . . . . . . . . Level 4 . | . . . . . . . . . . . . . . . . . . Level 5 . | . . . . . . . . . . . . . . . . . . High Security . | . . . . . . . . . . . . . . . . . . Max Security . | . . . . . . . . . . . . . . . . . . Peak Influence 237 | . 75 79 140 148 . . . 237 120 . . 15 75 . . . 15 Initial 103 | . . 9 16 54 . . . . 103 . . 7 2 . . . . Average 30 | . 16 45 38 111 . . . 52 34 . . 1 6 . . . . Influence Increases 2133 | . 85 125 311 104 . . . 812 306 . . 30 150 165 . . 45 Destroy 0b10 Robot/C 1040 | . 60 80 180 80 . . . 380 200 . . . . 60 . . . Destroy 0b10 Robot/NC 40 | . . 5 5 . . . . 15 15 . . . . . . . . Destroy Leader 218 | . 10 10 42 10 . . . 94 52 . . . . . . . . Allied During Kill 115 | . . . . . . . . 111 4 . . . . . . . . Successful Hack 11 | . . . . . . . . 11 . . . . . . . . . Disable Machine 45 | . . . . . . . . 45 . . . . . . . . . Destroy Structure 154 | . . . 9 14 . . . 96 35 . . . . . . . . Partial Spotted 135 | . . . 15 . . . . 45 . . . 15 60 . . . . Lose Combat Pursuer 375 | . 15 30 60 . . . . 15 . . . 15 90 105 . . 45 Influence Decreases 2133 | . 60 106 215 166 78 . . 583 456 50 16 38 88 216 14 2 45 Entered New Map 411 | . . 16 28 86 78 . . . 126 30 6 6 3 26 4 2 . Time Decay 1285 | . 60 90 187 70 . . . 393 208 20 10 22 85 120 10 . 10 Lost Part 225 | . . . . 10 . . . 80 20 . . 10 . 70 . . 35 Lost Ally 150 | . . . . . . . . 110 40 . . . . . . . . Purge Threat 62 | . . . . . . . . . 62 . . . . . . . . Squads Dispatched 22 | . 1 . 1 . . . . 8 5 . . 2 2 . . . 3 Investigation 1 | . . . . . . . . . . . . . . . . . 1 Extermination 5 | . . . . . . . . . 1 . . 1 2 . . . 1 Reinforcement 7 | . 1 . 1 . . . . 2 1 . . 1 . . . . 1 Assault . | . . . . . . . . . . . . . . . . . . Garrison 9 | . . . . . . . . 6 3 . . . . . . . . Intercept . | . . . . . . . . . . . . . . . . . . Searches Triggered . | . . . . . . . . . . . . . . . . . . Construction Impeded 1 | . . . . . . . . 1 . . . . . . . . . Haulers Reinforced . | . . . . . . . . . . . . . . . . . . Active Scanning Responses . | . . . . . . . . . . . . . . . . . . Cargo Convoy Interrupts . | . . . . . . . . . . . . . . . . . . Stealth | -11 -10 -10 -9 -9 -9 -8 -8 -8 -7 -7 -7 -6 -5 -5 -5 -4 -3 --------- Run | Yrd Mat Min Mat Min Exi Min Mat Sto Fac Low Low Fac Fac Upp Upp Fac Res Distress Signals 11 | . 1 . 2 . . . . 7 . . . . 1 . . . . Communications Jammed . | . . . . . . . . . . . . . . . . . . Distress Signals . | . . . . . . . . . . . . . . . . . . Times Spotted 119 | . 6 5 23 3 . . . 20 18 . . 4 6 18 . . 16 Peak Tracking Total 15 | . 3 3 11 3 . . . 4 4 . . 3 7 9 . . 15 Tactical Retreats 15 | . 1 1 2 . . . . 1 . . . 1 2 5 . . 2 Traps | -11 -10 -10 -9 -9 -9 -8 -8 -8 -7 -7 -7 -6 -5 -5 -5 -4 -3 ------- Run | Yrd Mat Min Mat Min Exi Min Mat Sto Fac Low Low Fac Fac Upp Upp Fac Res Traps Triggered 5 | . 1 . . . . . 1 2 . . . . . . . . 1 Indirectly . | . . . . . . . . . . . . . . . . . . Trap Hack Attempts . | . . . . . . . . . . . . . . . . . . Triggered . | . . . . . . . . . . . . . . . . . . Disarmed . | . . . . . . . . . . . . . . . . . . Reprogrammed . | . . . . . . . . . . . . . . . . . . Reused . | . . . . . . . . . . . . . . . . . . Traps Extracted . | . . . . . . . . . . . . . . . . . . Installed . | . . . . . . . . . . . . . . . . . . Triggered . | . . . . . . . . . . . . . . . . . . Machines | -11 -10 -10 -9 -9 -9 -8 -8 -8 -7 -7 -7 -6 -5 -5 -5 -4 -3 ---------- Run | Yrd Mat Min Mat Min Exi Min Mat Sto Fac Low Low Fac Fac Upp Upp Fac Res Machines Disabled 3 | . . . . . . . . 3 . . . . . . . . . Max in Single Turn 2 | . . . . . . . . 2 . . . . . . . . . Machines Repaired . | . . . . . . . . . . . . . . . . . . Machines Dismantled . | . . . . . . . . . . . . . . . . . . Machines Sabotaged . | . . . . . . . . . . . . . . . . . . Overloaded Fab Kills . | . . . . . . . . . . . . . . . . . . Hacking | -11 -10 -10 -9 -9 -9 -8 -8 -8 -7 -7 -7 -6 -5 -5 -5 -4 -3 --------- Run | Yrd Mat Min Mat Min Exi Min Mat Sto Fac Low Low Fac Fac Upp Upp Fac Res Machines Accessed 10 | . . . . 1 . . . 7 1 . . . . . 1 . . Terminals 9 | . . . . . . . . 7 1 . . . . . 1 . . Fabricators . | . . . . . . . . . . . . . . . . . . Repair Stations . | . . . . . . . . . . . . . . . . . . Recycling Units . | . . . . . . . . . . . . . . . . . . Scanalyzers . | . . . . . . . . . . . . . . . . . . Garrison Access . | . . . . . . . . . . . . . . . . . . Total Hacks 16 | . . . . 1 . . . 12 2 . . . . . 1 . . Successful 8 | . . . . 1 . . . 5 1 . . . . . 1 . . Failed 8 | . . . . . . . . 7 1 . . . . . . . . Catastrophic 4 | . . . . . . . . 4 . . . . . . . . . Database Lockouts . | . . . . . . . . . . . . . . . . . . Manual 2 | . . . . . 1 . . . 1 . . . . . . . . Terminals 15 | . . . . . . . . 12 2 . . . . . 1 . . Fabricators . | . . . . . . . . . . . . . . . . . . Repair Stations . | . . . . . . . . . . . . . . . . . . Recycling Units . | . . . . . . . . . . . . . . . . . . Scanalyzers . | . . . . . . . . . . . . . . . . . . Garrison Access . | . . . . . . . . . . . . . . . . . . Terminal Hacks 8 | . . . . 1 . . . 5 1 . . . . . 1 . . Record 1 | . . . . . . . . . . . . . . . 1 . . Open Door 3 | . . . . 1 . . . 2 . . . . . . . . . Branch Access Points 1 | . . . . . . . . 1 . . . . . . . . . Repair Station Index 1 | . . . . . . . . 1 . . . . . . . . . Alert Level 1 | . . . . . . . . 1 . . . . . . . . . Unreport Threat 1 | . . . . . . . . . 1 . . . . . . . . Fabricator Hacks . | . . . . . . . . . . . . . . . . . . Repair Station Hacks . | . . . . . . . . . . . . . . . . . . Recycling Unit Hacks . | . . . . . . . . . . . . . . . . . . Scanalyzer . | . . . . . . . . . . . . . . . . . . Garrison Access Hacks . | . . . . . . . . . . . . . . . . . . Unauthorized Hacks . | . . . . . . . . . . . . . . . . . . Terminals . | . . . . . . . . . . . . . . . . . . Fabricators . | . . . . . . . . . . . . . . . . . . Repair Stations . | . . . . . . . . . . . . . . . . . . Recycling Units . | . . . . . . . . . . . . . . . . . . Scanalyzers . | . . . . . . . . . . . . . . . . . . Garrison Access . | . . . . . . . . . . . . . . . . . . Data Cores Recovered . | . . . . . . . . . . . . . . . . . . Used . | . . . . . . . . . . . . . . . . . . Hacking Detections 5 | . . . . . . . . 3 1 . . . . . 1 . . Full Trace Events . | . . . . . . . . . . . . . . . . . . Feedback Events . | . . . . . . . . . . . . . . . . . . Feedback Blocked . | . . . . . . . . . . . . . . . . . . Robot Schematics Acquired . | . . . . . . . . . . . . . . . . . . Robots Built . | . . . . . . . . . . . . . . . . . . Authchips . | . . . . . . . . . . . . . . . . . . Time . | . . . . . . . . . . . . . . . . . . Total Robot Build Rating . | . . . . . . . . . . . . . . . . . . Part Schematics Acquired . | . . . . . . . . . . . . . . . . . . Parts Built . | . . . . . . . . . . . . . . . . . . Authchips . | . . . . . . . . . . . . . . . . . . Time . | . . . . . . . . . . . . . . . . . . Total Part Build Rating . | . . . . . . . . . . . . . . . . . . Part Studies Acquired . | . . . . . . . . . . . . . . . . . . Parts Repaired . | . . . . . . . . . . . . . . . . . . Time . | . . . . . . . . . . . . . . . . . . Parts Recycled . | . . . . . . . . . . . . . . . . . . Recycled Matter . | . . . . . . . . . . . . . . . . . . Retrieved Matter . | . . . . . . . . . . . . . . . . . . Retrieved Components . | . . . . . . . . . . . . . . . . . . Parts Scanalyzed . | . . . . . . . . . . . . . . . . . . Part Schematics Acquired . | . . . . . . . . . . . . . . . . . . Parts Damaged . | . . . . . . . . . . . . . . . . . . Bothacking | -11 -10 -10 -9 -9 -9 -8 -8 -8 -7 -7 -7 -6 -5 -5 -5 -4 -3 ------------ Run | Yrd Mat Min Mat Min Exi Min Mat Sto Fac Low Low Fac Fac Upp Upp Fac Res Used RIF Installer . | . . . . . . . . . . . . . . . . . . Robots Hacked 2 | . . . . . . . . . 2 . . . . . . . . Non-combat 1 | . . . . . . . . . 1 . . . . . . . . Combat 1 | . . . . . . . . . 1 . . . . . . . . Robot Hacks Applied 3 | . . . . . . . . . 3 . . . . . . . . parse_system 1 | . . . . . . . . . 1 . . . . . . . . no_distress 1 | . . . . . . . . . 1 . . . . . . . . find_station 1 | . . . . . . . . . 1 . . . . . . . . Relay Couplers Released . | . . . . . . . . . . . . . . . . . . Fabnet Peak Effective % . | . . . . . . . . . . . . . . . . . . Robots Rewired 1 | . . . . . . . . . 1 . . . . . . . . Allies Hacked . | . . . . . . . . . . . . . . . . . . Hacks Repelled . | . . . . . . . . . . . . . . . . . . Allies | -11 -10 -10 -9 -9 -9 -8 -8 -8 -7 -7 -7 -6 -5 -5 -5 -4 -3 -------- Run | Yrd Mat Min Mat Min Exi Min Mat Sto Fac Low Low Fac Fac Upp Upp Fac Res Total Allies 16 | . . . . . . . . 15 1 . . . . . . . . Largest Group 10 | . . . . . . . . 10 3 . . . . . . . . Highest-Rated Group 173 | . . . . . . . . 173 61 . . . . . . . . Highest-Rated Ally 29 | . . . . . . . . 29 29 . . . . . . . . Total Orders . | . . . . . . . . . . . . . . . . . . Ally Attacks 85 | . . . . . . . . 73 12 . . . . . . . . Total Damage 1311 | . . . . . . . . 1112 199 . . . . . . . . Kills 20 | . . . . . . . . 19 1 . . . . . . . . Allies Corrupted 1 | . . . . . . . . . 1 . . . . . . . . Allies Melted . | . . . . . . . . . . . . . . . . . . Field Lobotomies 5 | . . . . . . . . 5 . . . . . . . . . Intel | -11 -10 -10 -9 -9 -9 -8 -8 -8 -7 -7 -7 -6 -5 -5 -5 -4 -3 ------- Run | Yrd Mat Min Mat Min Exi Min Mat Sto Fac Low Low Fac Fac Upp Upp Fac Res Active Infowar (turns) 5175 | . 314 181 439 159 63 65 49 1180 926 41 28 498 428 244 35 101 424 Optics 3731 | . . . 294 159 63 65 49 481 821 41 28 498 428 244 35 101 424 Sensors 5126 | . 314 181 439 159 63 65 49 1180 926 41 28 498 428 244 35 101 375 Terrain 85 | . . . . . . . . 85 . . . . . . . . . Jamming 1 | . . . . . . . 1 . . . . . . . . . . ECM 2 | . . . . . . . . . . . . . 1 . 1 . . Robot Analysis Total . | . . . . . . . . . . . . . . . . . . Derelict Logs Recovered 5 | . . 1 . 1 . . . . . 1 . . . 1 1 . . Drone Launches . | . . . . . . . . . . . . . . . . . . Drone Recoveries . | . . . . . . . . . . . . . . . . . . Exploration | -11 -10 -10 -9 -9 -9 -8 -8 -8 -7 -7 -7 -6 -5 -5 -5 -4 -3 ------------- Run | Yrd Mat Min Mat Min Exi Min Mat Sto Fac Low Low Fac Fac Upp Upp Fac Res Turns Passed 5338 | 69 336 181 439 159 63 65 49 1249 926 41 28 498 428 244 35 101 427 Spaces Moved 5862 | 53 151 389 428 292 225 154 160 913 552 158 59 551 652 476 81 269 299 Core 166 | 7 . . . . . . . 65 1 . . . . . . . 93 Treads . | . . . . . . . . . . . . . . . . . . Legs 712 | 46 151 1 . . . . . 198 316 . . . . . . . . Wheels . | . . . . . . . . . . . . . . . . . . Hover . | . . . . . . . . . . . . . . . . . . Flight 4984 | . . 388 428 292 225 154 160 650 235 158 59 551 652 476 81 269 206 Fastest Speed 26 | 50 120 37 27 27 27 27 27 27 26 26 26 26 27 31 37 37 37 Average Speed 42 | 110 120 37 30 27 27 27 27 53 82 26 26 30 29 34 37 37 41 Slowest Speed 435 | 120 120 120 31 27 27 27 28 190 435 26 26 31 31 37 37 37 120 Overloaded Moves . | . . . . . . . . . . . . . . . . . . Propulsion Burnouts . | . . . . . . . . . . . . . . . . . . Robots Hopped 39 | . . 1 5 . . 1 . 5 6 1 . 5 10 2 . 1 2 Potential Cave-ins 2 | . . . . . . . . 2 . . . . . . . . . Cave-ins Triggered 1 | . . . . . . . . 1 . . . . . . . . . Exploration Rate (%) 31 | 4 29 80 34 52 43 42 11 77 16 40 11 19 13 63 13 7 12 Regions Visited 17 Branch Regions 9 Pre-discovered Areas 1 | . . 1 . . . . . . . . . . . . . . . Known Exits Taken 11 | . . . 1 . . . 1 1 1 1 1 1 1 1 1 1 . Unknown Exits Taken 6 | 1 1 1 . 1 1 1 . . . . . . . . . . . Scrap Searched 8 | . . 2 . 1 . 1 . . . 2 . . . 2 . . . Spaces Dug 8 | . . . . 8 . . . . . . . . . . . . . Terrain Destroyed 202 | . . . 7 14 . . . 131 44 . . . . 6 . . . Melee . | . . . . . . . . . . . . . . . . . . Projectile 6 | . . . . . . . . . . . . . . 6 . . . AOE 196 | . . . 7 14 . . . 131 44 . . . . . . . . Terrain Rammed . | . . . . . . . . . . . . . . . . . . Walls Destroyed . | . . . . . . . . . . . . . . . . . . Machines Disabled . | . . . . . . . . . . . . . . . . . . Actions | -11 -10 -10 -9 -9 -9 -8 -8 -8 -7 -7 -7 -6 -5 -5 -5 -4 -3 --------- Run | Yrd Mat Min Mat Min Exi Min Mat Sto Fac Low Low Fac Fac Upp Upp Fac Res Total 8435 | 63 288 413 704 367 226 175 163 1613 963 156 70 875 878 528 85 268 600 Wait 2297 | . 120 6 242 67 . 19 . 620 345 . 12 311 222 36 . . 297 Move 5767 | 52 150 386 417 291 224 151 159 901 539 155 58 540 632 471 80 266 295 Hop 37 | . . 1 5 . . 1 . 5 5 1 . 5 9 2 . 1 2 Pick Up 62 | 7 5 5 5 . 1 1 1 13 8 . . 4 5 2 2 1 2 Fast Attach 14 | . . . . 2 . . 1 3 6 . . 2 . . . . . Attach 47 | 4 3 1 2 . . . 2 15 7 . . 1 5 4 3 . . Detach 4 | . . . . . . . . 2 1 . . . . . . . 1 Swap 34 | . . 3 11 2 1 2 . 3 4 . . 6 1 . . . 1 Drop 37 | . . 5 6 3 . 1 . 2 8 . . 6 4 . . . 2 Fire 129 | . 10 6 16 2 . . . 48 34 . . . . 13 . . . Melee 5 | . . . . . . . . . 5 . . . . . . . . Ram . | . . . . . . . . . . . . . . . . . . Kick . | . . . . . . . . . . . . . . . . . . Crush . | . . . . . . . . . . . . . . . . . . Escape Stasis 2 | . . . . . . . . 1 1 . . . . . . . . Rewire . | . . . . . . . . . . . . . . . . . . Trap . | . . . . . . . . . . . . . . . . . . Miscellaneous . | . . . . . . . . . . . . . . . . . . Route ------- -11/Scrapyard -10/Materials -10/Mines -9/Materials (discovered 2 exits: *Min x2) -9/Mines -9/Exiles -8/Mines -8/Materials (discovered 2 exits: *Sto x2) -8/Storage (discovered 2 exits: *Fac / Rec) -7/Factory -7/Lower Caves -7/Lower Caves -6/Factory -5/Factory -5/Upper Caves -5/Upper Caves -4/Factory (discovered 4 exits: *Res x3 / Upp) -3/Research History --------- Turn | Location | Event 5 | -11/Scrapyard | Discovered new exit (range 15) 70 | -11/Scrapyard | Entered Materials 301 | -10/Materials | Build established: Mutant 376 | -10/Materials | Discovered new exit (range 7) 406 | -10/Materials | Entered Mines 476 | -10/Mines | Learned location of Storage (-8) 519 | -10/Mines | Learned 2 Materials zone layouts 583 | -10/Mines | Discovered new exit (range 11) 587 | -10/Mines | Entered Materials 587 | -9/Materials | Evolved 2 slots: Propulsion x2 588 | -9/Materials | Identified exit to Mines 1023 | -9/Materials | Discovered exit to Mines (range 11) 1026 | -9/Materials | Entered Mines 1027 | -9/Mines | Assembled infested the area 1050 | -9/Mines | Destroyed 8 combat bots 1055 | -9/Mines | Received a Rocket Launcher from a helpful Derelict 1077 | -9/Mines | Found the Drone Emporium 1099 | -9/Mines | Met 8R-AWN 1183 | -9/Mines | Discovered new exit (range 5) 1185 | -9/Mines | Entered Exiles 1190 | -9/Exiles | Discovered new exit (range 16) 1193 | -9/Exiles | Welcomed by 8R-AWN 1197 | -9/Exiles | Met EX-HEX 1207 | -9/Exiles | Met EX-BIN 1210 | -9/Exiles | Aligned with FarCom system 1210 | -9/Exiles | Given EX-Vault access code 1217 | -9/Exiles | Opened EX-Vault 1219 | -9/Exiles | Found Prototype Special Weapon 1220 | -9/Exiles | Identified Field Lobotomy Kit 1227 | -9/Exiles | Warned to stay clear of 0b10 Research branches 1239 | -9/Exiles | Learned about 8R-AWN's background 1248 | -9/Exiles | Left Exiles lab with Field Lobotomy Kit 1248 | -9/Exiles | Entered Mines 1312 | -8/Mines | Discovered new exit (range 5) 1313 | -8/Mines | Entered Materials 1313 | -8/Materials | Evolved 2 slots: Utility x2 1313 | -8/Materials | Discovered new exit (range 7) 1314 | -8/Materials | Identified exit to Storage 1362 | -8/Materials | Entered Storage 1376 | -8/Storage | Assimilated O-16 Technician with FLK Orb 1383 | -8/Storage | Identified exit to Recycling 1429 | -8/Storage | Assimilated Y-45 Defender with FLK Orb 1454 | -8/Storage | Garrison activated, responded to threat 1455 | -8/Storage | Assimilated Y-45 Defender with FLK Orb 1542 | -8/Storage | Build established: Scavenger-Scout 1768 | -8/Storage | Assimilated Y-45 Defender with FLK Orb 1783 | -8/Storage | Assimilated Y-45 Defender with FLK Orb 1843 | -8/Storage | Crushed by falling debris 1844 | -8/Storage | System corruption reached 10% 1874 | -8/Storage | Lost 6 parts (1p2n2u1w) 2144 | -8/Storage | Build established: Scout 2359 | -8/Storage | Core integrity fell below 50% 2375 | -8/Storage | Assisted by bots powering up and referring to "LRC-V3" 2389 | -8/Storage | Lost 5 parts (1p1n2u1w) 2397 | -8/Storage | Garrison activated, responded to threat 2437 | -8/Storage | Lost 3 allies 2588 | -8/Storage | Discovered new exit (range 10) 2603 | -8/Storage | Identified exit to Factory 2611 | -8/Storage | Entered Factory 2611 | -7/Factory | Accompanied by 3 allies 2611 | -7/Factory | Evolved 2 slots: Power x1, Utility x1 2612 | -7/Factory | Lost 4 allies 2991 | -7/Factory | Garrison activated, responded to threat 3481 | -7/Factory | Build established: Scavenger-Scout 3533 | -7/Factory | Discovered new exit (range 14) 3536 | -7/Factory | Identified exit to Lower Caves 3537 | -7/Factory | Entered Lower Caves 3548 | -7/Lower Caves | Identified exit to Lower Caves 3578 | -7/Lower Caves | Entered another Lower Caves area 3589 | -7/Lower Caves | Discovered new exit (range 3) 3605 | -7/Lower Caves | Identified exit to Factory 3606 | -7/Lower Caves | Entered Factory 3606 | -6/Factory | Evolved 2 slots: Utility x2 3912 | -6/Factory | Build established: Scout 4099 | -6/Factory | Discovered new exit (range 17) 4104 | -6/Factory | Identified exit to Factory 4104 | -6/Factory | Entered another Factory area 4104 | -5/Factory | Evolved 2 slots: Propulsion x1, Utility x1 4528 | -5/Factory | Discovered new exit (range 10) 4531 | -5/Factory | Identified exit to Upper Caves 4532 | -5/Factory | Entered Upper Caves 4536 | -5/Upper Caves | Learned location of 1 exit from Factory 4666 | -5/Upper Caves | Spotted B-75 Beast 4675 | -5/Upper Caves | Lost 5 parts (1p3n1w) 4773 | -5/Upper Caves | Discovered new exit (range 10) 4776 | -5/Upper Caves | Identified exit to Upper Caves 4776 | -5/Upper Caves | Entered another Upper Caves area 4787 | -5/Upper Caves | Discovered new exit (range 11) 4794 | -5/Upper Caves | Learned location of 2 exits from Factory 4811 | -5/Upper Caves | Identified exit to Factory 4811 | -5/Upper Caves | Entered Factory 4811 | -4/Factory | Evolved 2 slots: Utility x2 4812 | -4/Factory | Identified exit to Research 4812 | -4/Factory | Identified exit to Upper Caves 4812 | -4/Factory | Discovered exit to Research (range 11) 4912 | -4/Factory | Entered Research 4912 | -3/Research | Evolved 2 slots: Propulsion x1, Utility x1 5049 | -3/Research | Build established: Hacker-Scout 5315 | -3/Research | Core integrity fell below 50% 5332 | -3/Research | Core integrity fell below 20% 5339 | -3/Research | Destroyed by S-43 Plague with Heavy Machine Gun Last Messages --------------- Connecting with Terminal... ALERT: All DSF locations entering lockdown mode. Nuclear Pulse Array destroyed. Dropped Shock Absorption System. Dropped Flak Gun. Engineering Station disabled. Imp. Hacking Suite destroyed. Imp. Sensor Array destroyed. Lgt. Angular Momentum Engine destroyed. Nuclear Pulse Array destroyed. Triggered Alarm Trap. An alarm sounds. ALERT: Alarm triggered, dispatching investigation squad. ALERT: Suspicious intruders detected, dispatching Cutter reinforcements to area. Imp. System Shield destroyed. Adv. ECM Suite destroyed. U-05 Engineer destroyed. Visual Processing Unit destroyed. Map ----- +----------------------------------------------------+ | ?????????????????????????????????????????????????? | | ?????????????????????????????????????????????????? | | ?????????????????????????????????????????????????? | | ?????????????????????????????????????????????????? | | ?????????????????????????????????????????????????? | | ###??????????????????????????????????????????????? | | #??????????????????????????????????????????????? | | #??????????????????????????????????????????????? | | #??????????????????????????????????????????????? | | #??????????????????????????????????????????????? | | #??????????????????????????????????????????????? | | #??????????????????????????????????????????????? | | #????????????????????????####??????????????????? | | #???????????????????????? #??????????????????? | | #??????????????????????? #??????????????????? | | #??????????????????????? #??????????????????? | | #??????????????????????? #??????????????????? | | #??????????????????????? #??????????????????? | | #??????????????????????? #??????????????????? | | ######+######+########?? #??????????????????? | | ^^ *| ### #??????????????????? | | sp%! #??????????????????? | | ss!! #??????????????????? | | ss #??????????????????? | | """"""" !== #??????????????????? | | """"""" !@= #??????????????????? | | """"""" !== #??????????????????? | | ???????????????? | | ????????????? | | #???????????? | | ##### #???????????? | | ????####+##################+##### #???????????? | | ?????????????????????????????????? #???????????? | | ??????????????????????????????????? #???????????? | | ?????????????????????????????????????#???????????? | | ?????????????????????????????????????????????????? | | ?????????????????????????????????????????????????? | | ?????????????????????????????????????????????????? | | ?????????????????????????????????????????????????? | | ?????????????????????????????????????????????????? | | ?????????????????????????????????????????????????? | | ?????????????????????????????????????????????????? | | ?????????????????????????????????????????????????? | | ?????????????????????????????????????????????????? | | ?????????????????????????????????????????????????? | | ?????????????????????????????????????????????????? | | ?????????????????????????????????????????????????? | | ?????????????????????????????????????????????????? | | ?????????????????????????????????????????????????? | | ?????????????????????????????????????????????????? | +----------------------------------------------------+ Best States ------------- Heat Dissipation 46 Energy Generation 25 Energy Capacity 330 Matter Stores 300 Matter Capacity 300 Sight Range 18 Robot Scan Range 15 Terrain Scan Range 14 Terrain Scan Density 10 Resistance: EX 25 Core Shielding 20 Evasion (%) 72 Kinecelleration 30 Offensive Hacking 12 Defensive Hacking 12 Item Schematics ----------------- None Robot Schematics ------------------ None Fabricated ------------ Nothing Repaired ---------- Nothing Studied --------- None Alien Tech Used ----------------- None Achievements -------------- A New Friend I Spy Knowing Is Half The Battle Challenges ------------ None Game ------ Seed StrikeMomentumMultitool Manual? 0 Play Time 01:27:52 Cumulative 22.2 hours Start 2025.12.19 @ 21:48:05 End 2025.12.19 @ 23:23:55 Sessions 1 Manual Loads 0 Difficulty Rogue Special Mode None Game No. 41 Rogue 40 Adventurer 1 Explorer 0 Win Type - Total 0 Types 0/0/0/0/0/0/0/0/0/0 Lore% 6 Gallery% 24 Achievement% 16 Wizard Run 0 Options --------- Layout 1 ASCII 0 Keyboard 0 Movement Arrows Keybinds 0 Fullscreen 1 Font 24/Smallcaps Map View 50x35 Zoom Use 0% Tactical HUD 0 Map Filters NONE Filters NONE Steam 1 RUN: 130183fd-3d47-48df-8730-12b4b9ced7a6